[Event "*** SCC Grand Prix: Titled Tuesday Blitz"]
[Site "Chess.com"]
[Date "2020.09.08"]
[Round "7"]
[White "PotapovaM"]
[Black "Keures"]
[Result "0-1"]
[WhiteElo "2498"]
[BlackElo "2373"]
[TimeControl "180+1"]
[EndTime "11:20:47 PDT"]
[Termination "Keures won by resignation"]

1. d4 {[%clk 0:02:57.5]} 1... Nf6 {[%clk 0:02:56.3]} 2. c4 {[%clk 0:02:57]} 2...
e6 {[%clk 0:02:54.8]} 3. Nf3 {[%clk 0:02:54.2]} 3... d5 {[%clk 0:02:52.5]} 4.
Nc3 {[%clk 0:02:51.5]} 4... c6 {[%clk 0:02:50.7]} 5. Bg5 {[%clk 0:02:50.2]} 5...
Be7 {[%clk 0:02:50.6]} 6. e3 {[%clk 0:02:49.5]} 6... O-O {[%clk 0:02:50.3]} 7.
Bd3 {[%clk 0:02:50.1]} 7... Nbd7 {[%clk 0:02:47.5]} 8. O-O {[%clk 0:02:49.8]}
8... Re8 {[%clk 0:02:47.7]} 9. Rc1 {[%clk 0:02:48.8]} 9... Nf8 {[%clk
0:02:47.6]} 10. Ne5 {[%clk 0:02:39.4]} 10... Ng6 {[%clk 0:02:46.6]} 11. f4
{[%clk 0:02:36.1]} 11... Nd7 {[%clk 0:02:28.5]} 12. Bxe7 {[%clk 0:02:27.6]}
12... Qxe7 {[%clk 0:02:29.4]} 13. Qh5 {[%clk 0:02:20.6]} 13... Ngf8 {[%clk
0:01:38.4]} 14. Rf3 {[%clk 0:02:09.3]} 14... f6 {[%clk 0:01:38.5]} 15. Rh3
{[%clk 0:01:54.8]} 15... f5 {[%clk 0:01:36]} 16. g4 {[%clk 0:01:50.7]} 16... Nf6
{[%clk 0:01:35.3]} 17. Qh4 {[%clk 0:01:43.7]} 17... g6 {[%clk 0:01:27.7]} 18. g5
{[%clk 0:01:31.6]} 18... Ne4 {[%clk 0:01:23.8]} 19. Bxe4 {[%clk 0:01:27.3]}
19... fxe4 {[%clk 0:01:22.7]} 20. Ng4 {[%clk 0:01:24.3]} 20... Nd7 {[%clk
0:01:19.9]} 21. a3 {[%clk 0:00:55.2]} 21... a5 {[%clk 0:01:15.6]} 22. Rf1 {[%clk
0:00:52.2]} 22... Rf8 {[%clk 0:01:14.6]} 23. Kh1 {[%clk 0:00:50.5]} 23... Qg7
{[%clk 0:01:12.2]} 24. Rg3 {[%clk 0:00:45.3]} 24... b6 {[%clk 0:01:11.8]} 25.
Rgg1 {[%clk 0:00:44.9]} 25... Ba6 {[%clk 0:01:11.8]} 26. Rf2 {[%clk 0:00:41.5]}
26... Bxc4 {[%clk 0:01:10.1]} 27. Ne5 {[%clk 0:00:34.2]} 27... Nxe5 {[%clk
0:01:09.2]} 28. dxe5 {[%clk 0:00:35.1]} 28... b5 {[%clk 0:01:05.3]} 29. Nb1
{[%clk 0:00:34.1]} 29... b4 {[%clk 0:01:00.5]} 30. Qg4 {[%clk 0:00:31]} 30...
Qf7 {[%clk 0:00:58.5]} 31. h4 {[%clk 0:00:30.5]} 31... Qf5 {[%clk 0:00:58.3]}
32. Qg3 {[%clk 0:00:30.8]} 32... Bd3 {[%clk 0:00:56.8]} 33. Nd2 {[%clk
0:00:30.3]} 33... c5 {[%clk 0:00:56.2]} 34. Nb3 {[%clk 0:00:30.2]} 34... Rfc8
{[%clk 0:00:50.7]} 35. Rh2 {[%clk 0:00:30.7]} 35... a4 {[%clk 0:00:48.1]} 36.
Nd2 {[%clk 0:00:27.4]} 36... bxa3 {[%clk 0:00:46.7]} 37. bxa3 {[%clk 0:00:27.2]}
37... c4 {[%clk 0:00:47.1]} 38. h5 {[%clk 0:00:26.7]} 38... c3 {[%clk
0:00:44.6]} 39. hxg6 {[%clk 0:00:24.2]} 39... Qxg6 {[%clk 0:00:44.5]} 40. Rh6
{[%clk 0:00:23.5]} 40... Qg7 {[%clk 0:00:40.8]} 41. Qh3 {[%clk 0:00:20.2]} 41...
c2 {[%clk 0:00:22.2]} 42. Rc1 {[%clk 0:00:13.6]} 42... Rc6 {[%clk 0:00:22]} 43.
Qg2 {[%clk 0:00:08.8]} 43... Rb8 {[%clk 0:00:20.4]} 44. Qg1 {[%clk 0:00:04.7]}
44... Rf8 {[%clk 0:00:19.4]} 45. Kg2 {[%clk 0:00:05.6]} 45... Kh8 {[%clk
0:00:18.4]} 46. Rh1 {[%clk 0:00:05.4]} 46... Rfc8 {[%clk 0:00:16.7]} 47. Qh2
{[%clk 0:00:05.9]} 47... R6c7 {[%clk 0:00:16.3]} 48. Kf2 {[%clk 0:00:05.4]}
48... Qd7 {[%clk 0:00:16.2]} 49. g6 {[%clk 0:00:05]} 49... Qg7 {[%clk 0:00:15]}
50. gxh7 {[%clk 0:00:04.7]} 50... Qg6 {[%clk 0:00:10.2]} 51. Qh3 {[%clk
0:00:04.7]} 51... Rg7 {[%clk 0:00:09.5]} 52. Rh2 {[%clk 0:00:04.5]} 52... Rcc7
{[%clk 0:00:08.8]} 53. Rhh1 {[%clk 0:00:04.5]} 53... Rxh7 {[%clk 0:00:08.7]} 54.
Qg2 {[%clk 0:00:03.4]} 54... Qxg2+ {[%clk 0:00:08.5]} 55. Kxg2 {[%clk
0:00:04.3]} 55... Rxh1 {[%clk 0:00:08.5]} 56. Kxh1 {[%clk 0:00:05.2]} 56... Rb7
{[%clk 0:00:07.7]} 57. Kg2 {[%clk 0:00:05.2]} 57... Rb3 {[%clk 0:00:08.3]} 58.
Kf2 {[%clk 0:00:04.8]} 58... Rxa3 {[%clk 0:00:08.8]} 59. f5 {[%clk 0:00:05.2]}
59... exf5 {[%clk 0:00:08.7]} 60. Kg3 {[%clk 0:00:05.5]} 60... Rb3 {[%clk
0:00:09.2]} 61. Kf4 {[%clk 0:00:03.8]} 61... a3 {[%clk 0:00:07.8]} 62. e6 {[%clk
0:00:03.8]} 62... Rb7 {[%clk 0:00:06.8]} 63. Ke5 {[%clk 0:00:03.2]} 63... a2
{[%clk 0:00:05.5]} 64. Kd6 {[%clk 0:00:03.5]} 64... Rb1 {[%clk 0:00:04]} 65. e7
{[%clk 0:00:02.1]} 65... Bb5 {[%clk 0:00:03.7]} 66. Rxc2 {[%clk 0:00:01.4]}
66... a1=Q {[%clk 0:00:03.3]} 67. Rc8+ {[%clk 0:00:02]} 67... Kg7 {[%clk
0:00:03.3]} 68. Rc7 {[%clk 0:00:02.5]} 68... Qf6+ {[%clk 0:00:02.8]} 69. Kc5
{[%clk 0:00:02.3]} 69... Rc1+ {[%clk 0:00:03.4]} 70. Nc4 {[%clk 0:00:01.5]}
70... Rxc4+ {[%clk 0:00:03.2]} 71. Kxb5 {[%clk 0:00:02.4]} 71... Rxc7 {[%clk
0:00:02.3]} 72. e8=Q {[%clk 0:00:03.3]} 72... Qf7 {[%clk 0:00:02.6]} 73. Qe5+
{[%clk 0:00:02.8]} 73... Kf8 {[%clk 0:00:03.5]} 74. Qg3 {[%clk 0:00:03.4]} 74...
Qd7+ {[%clk 0:00:03.6]} 75. Kb4 {[%clk 0:00:03.6]} 75... Ke7 {[%clk 0:00:04]}
76. Qh4+ {[%clk 0:00:03.4]} 76... Ke6 {[%clk 0:00:04]} 77. Qh6+ {[%clk
0:00:03.4]} 77... Ke7 {[%clk 0:00:04.4]} 78. Qg7+ {[%clk 0:00:03.9]} 78... Ke8
{[%clk 0:00:04.9]} 79. Qg8+ {[%clk 0:00:04]} 79... Ke7 {[%clk 0:00:05.8]} 80.
Qg7+ {[%clk 0:00:04.3]} 80... Ke6 {[%clk 0:00:06.7]} 81. Qg6+ {[%clk 0:00:04.3]}
81... Ke5 {[%clk 0:00:07.6]} 82. Qg7+ {[%clk 0:00:03.4]} 82... Qxg7 {[%clk
0:00:07.3]} 0-1

[Event "*** SCC Grand Prix: Titled Tuesday Blitz"]
[Site "Chess.com"]
[Date "2020.09.08"]
[Round "7"]
[White "THE_PLAYER6"]
[Black "olksuna"]
[Result "0-1"]
[WhiteElo "2473"]
[BlackElo "2670"]
[TimeControl "180+1"]
[EndTime "11:23:09 PDT"]
[Termination "olksuna won by resignation"]

1. c4 {[%clk 0:03:00.9]} 1... e6 {[%clk 0:02:59.5]} 2. a3 {[%clk 0:03:00.6]}
2... d5 {[%clk 0:02:59.5]} 3. cxd5 {[%clk 0:03:00.7]} 3... exd5 {[%clk
0:02:59.5]} 4. Nf3 {[%clk 0:03:01.1]} 4... c6 {[%clk 0:02:58.1]} 5. d4 {[%clk
0:03:01.4]} 5... Nf6 {[%clk 0:02:58]} 6. Nc3 {[%clk 0:03:01.7]} 6... Bf5 {[%clk
0:02:58.5]} 7. Bg5 {[%clk 0:03:00.2]} 7... Be7 {[%clk 0:02:56]} 8. e3 {[%clk
0:03:00.3]} 8... O-O {[%clk 0:02:55.7]} 9. Bd3 {[%clk 0:03:00.8]} 9... Bxd3
{[%clk 0:02:54.1]} 10. Qxd3 {[%clk 0:03:01.7]} 10... Nbd7 {[%clk 0:02:54.4]} 11.
O-O {[%clk 0:03:02.1]} 11... a5 {[%clk 0:02:54.8]} 12. Rab1 {[%clk 0:03:01.5]}
12... Re8 {[%clk 0:02:50]} 13. b4 {[%clk 0:03:01.2]} 13... axb4 {[%clk
0:02:48.7]} 14. axb4 {[%clk 0:03:02.1]} 14... Ne4 {[%clk 0:02:49.1]} 15. Bxe7
{[%clk 0:03:01.3]} 15... Qxe7 {[%clk 0:02:50]} 16. Nd2 {[%clk 0:02:56.7]} 16...
Nxd2 {[%clk 0:02:40.5]} 17. Qxd2 {[%clk 0:02:56.5]} 17... Nb6 {[%clk 0:02:41.4]}
18. b5 {[%clk 0:02:54.8]} 18... Nc4 {[%clk 0:02:41.6]} 19. Qe2 {[%clk
0:02:50.2]} 19... Ra3 {[%clk 0:02:36.4]} 20. Rfc1 {[%clk 0:02:49.6]} 20... g6
{[%clk 0:02:25.9]} 21. h3 {[%clk 0:02:48.7]} 21... h5 {[%clk 0:02:25.2]} 22.
bxc6 {[%clk 0:02:47.4]} 22... bxc6 {[%clk 0:02:25.4]} 23. Nd1 {[%clk 0:02:37.2]}
23... Rea8 {[%clk 0:02:21.1]} 24. Nc3 {[%clk 0:02:24.2]} 24... Kg7 {[%clk
0:02:06.2]} 25. Kh1 {[%clk 0:02:15]} 25... Qf6 {[%clk 0:02:01.3]} 26. Kg1 {[%clk
0:02:14.4]} 26... Qe7 {[%clk 0:01:54.6]} 27. Kh1 {[%clk 0:01:54.8]} 27... Qg5
{[%clk 0:01:52.8]} 28. Kg1 {[%clk 0:01:53]} 28... Qf5 {[%clk 0:01:53]} 29. e4
{[%clk 0:01:49.4]} 29... Qe6 {[%clk 0:01:49.1]} 30. exd5 {[%clk 0:01:44.9]}
30... cxd5 {[%clk 0:01:37.2]} 31. Qxe6 {[%clk 0:01:40.5]} 31... fxe6 {[%clk
0:01:38.1]} 32. Nb5 {[%clk 0:01:41.1]} 32... Rd3 {[%clk 0:01:16.7]} 33. Nc7
{[%clk 0:01:40.2]} 33... Ra2 {[%clk 0:01:12.9]} 34. Nxe6+ {[%clk 0:01:40.6]}
34... Kf6 {[%clk 0:01:09.6]} 35. Re1 {[%clk 0:01:29.1]} 35... Rdd2 {[%clk
0:00:56.8]} 36. Nf4 {[%clk 0:01:26]} 36... Rxf2 {[%clk 0:00:56.2]} 37. Rf1
{[%clk 0:01:23.7]} 37... Rxf1+ {[%clk 0:00:40.7]} 38. Rxf1 {[%clk 0:01:24.6]}
38... Kg7 {[%clk 0:00:38.9]} 39. Nxd5 {[%clk 0:01:23.2]} 39... Rd2 {[%clk
0:00:39.1]} 40. Rf4 {[%clk 0:01:21.8]} 40... Nd6 {[%clk 0:00:28.1]} 41. Ne3
{[%clk 0:01:18.4]} 41... Kh6 {[%clk 0:00:20.7]} 42. h4 {[%clk 0:01:17.7]} 42...
Kg7 {[%clk 0:00:20.4]} 43. d5 {[%clk 0:01:17]} 43... Kh6 {[%clk 0:00:16.6]} 44.
Kh2 {[%clk 0:01:16.3]} 44... Kg7 {[%clk 0:00:16.9]} 45. Kg3 {[%clk 0:01:16.8]}
45... Nf7 {[%clk 0:00:16.8]} 46. Rf2 {[%clk 0:01:15.1]} 46... Rd3 {[%clk
0:00:16.7]} 47. Kf3 {[%clk 0:01:11.8]} 47... Nd6 {[%clk 0:00:14.8]} 48. Ke2
{[%clk 0:01:11.4]} 48... Rd4 {[%clk 0:00:13.3]} 49. g3 {[%clk 0:01:11]} 49...
Re4 {[%clk 0:00:12.8]} 50. Kd3 {[%clk 0:01:10.2]} 50... Ra4 {[%clk 0:00:12.7]}
51. Rf1 {[%clk 0:01:09.6]} 51... Nb5 {[%clk 0:00:09.3]} 52. Rb1 {[%clk
0:01:08.3]} 52... Ra3+ {[%clk 0:00:09]} 53. Kd2 {[%clk 0:01:06.6]} 53... Ra2+
{[%clk 0:00:07.2]} 54. Kd3 {[%clk 0:01:00.7]} 54... Ra3+ {[%clk 0:00:07.5]} 55.
Kd2 {[%clk 0:01:00.9]} 55... Ra2+ {[%clk 0:00:07.7]} 56. Nc2 {[%clk 0:01:01.2]}
56... Nd4 {[%clk 0:00:06.8]} 57. Rc1 {[%clk 0:01:01.7]} 57... Nb3+ {[%clk
0:00:06]} 58. Kd1 {[%clk 0:01:00.3]} 58... Nxc1 {[%clk 0:00:06.9]} 59. Kxc1
{[%clk 0:01:01.2]} 59... Ra5 {[%clk 0:00:06.5]} 60. Ne3 {[%clk 0:01:00.9]} 60...
Ra3 {[%clk 0:00:06.2]} 61. Kd2 {[%clk 0:01:01.2]} 61... Kf6 {[%clk 0:00:06.8]}
62. Ke2 {[%clk 0:00:55.5]} 62... Rb3 {[%clk 0:00:06.6]} 63. d6 {[%clk
0:00:44.7]} 63... Ke6 {[%clk 0:00:05.9]} 64. Kf3 {[%clk 0:00:43.2]} 64... Kxd6
{[%clk 0:00:06]} 65. Kf4 {[%clk 0:00:43.9]} 65... Ke6 {[%clk 0:00:06.4]} 66. g4
{[%clk 0:00:40.2]} 66... Kf6 {[%clk 0:00:05.6]} 67. Nd5+ {[%clk 0:00:36]} 67...
Kg7 {[%clk 0:00:04.5]} 68. gxh5 {[%clk 0:00:34.1]} 68... gxh5 {[%clk 0:00:05.4]}
69. Ke4 {[%clk 0:00:30]} 69... Kh6 {[%clk 0:00:05.6]} 70. Ne7 {[%clk 0:00:24.2]}
70... Rh3 {[%clk 0:00:05.2]} 71. Ke5 {[%clk 0:00:23.3]} 71... Rh1 {[%clk
0:00:02.5]} 72. Kf6 {[%clk 0:00:21.6]} 72... Re1 {[%clk 0:00:03.4]} 73. Nf5+
{[%clk 0:00:21.8]} 73... Kh7 {[%clk 0:00:03.4]} 74. Kg5 {[%clk 0:00:22.4]} 74...
Re5 {[%clk 0:00:03.5]} 75. Kf6 {[%clk 0:00:17.6]} 75... Ra5 {[%clk 0:00:04.4]}
76. Ng3 {[%clk 0:00:17.6]} 76... Ra4 {[%clk 0:00:04.1]} 77. Nf5 {[%clk
0:00:12.7]} 77... Rf4 {[%clk 0:00:04.2]} 78. Kg5 {[%clk 0:00:12.5]} 78... Rf1
{[%clk 0:00:03.9]} 79. Ne3 {[%clk 0:00:08.9]} 79... Re1 {[%clk 0:00:03.7]} 80.
Nf5 {[%clk 0:00:08.4]} 80... Re5 {[%clk 0:00:03.3]} 81. Kf6 {[%clk 0:00:07.3]}
81... Rb5 {[%clk 0:00:02.9]} 82. Ng3 {[%clk 0:00:07.3]} 82... Kh6 {[%clk
0:00:03.3]} 83. Nf5+ {[%clk 0:00:07.5]} 83... Kh7 {[%clk 0:00:04.2]} 84. Ng3
{[%clk 0:00:08.2]} 84... Rc5 {[%clk 0:00:04.7]} 85. Nf5 {[%clk 0:00:08.4]} 85...
Rc4 {[%clk 0:00:05.2]} 86. Kg5 {[%clk 0:00:08.1]} 86... Rc5 {[%clk 0:00:05.5]}
87. Kf6 {[%clk 0:00:08.4]} 87... Kg8 {[%clk 0:00:05.9]} 88. Kg6 {[%clk
0:00:07.2]} 88... Ra5 {[%clk 0:00:05.3]} 89. Ng3 {[%clk 0:00:07.3]} 89... Ra4
{[%clk 0:00:03.4]} 90. Nf5 {[%clk 0:00:07.6]} 90... Rg4+ {[%clk 0:00:02.5]} 91.
Kxh5 {[%clk 0:00:07.8]} 91... Ra4 {[%clk 0:00:03.4]} 92. Kg5 {[%clk 0:00:08]}
92... Kf7 {[%clk 0:00:04.3]} 93. h5 {[%clk 0:00:07.4]} 93... Kg8 {[%clk
0:00:05.2]} 94. Nh6+ {[%clk 0:00:06.2]} 94... Kh8 {[%clk 0:00:05]} 95. Nf5
{[%clk 0:00:07.1]} 95... Kh7 {[%clk 0:00:05.1]} 96. Kf6 {[%clk 0:00:05.4]} 96...
Rf4 {[%clk 0:00:04.7]} 97. Kg5 {[%clk 0:00:05.9]} 97... Rf1 {[%clk 0:00:05.6]}
98. Kf6 {[%clk 0:00:05.9]} 98... Rh1 {[%clk 0:00:06.1]} 99. Kg5 {[%clk
0:00:06.5]} 99... Rf1 {[%clk 0:00:06.5]} 100. Nh4 {[%clk 0:00:06.5]} 100... Rg1+
{[%clk 0:00:07.4]} 101. Kf4 {[%clk 0:00:06.5]} 101... Kh6 {[%clk 0:00:07.2]}
102. Nf5+ {[%clk 0:00:07.1]} 102... Kxh5 {[%clk 0:00:06.9]} 103. Ng3+ {[%clk
0:00:08]} 103... Kh6 {[%clk 0:00:07.3]} 104. Nf5+ {[%clk 0:00:08.3]} 104... Kg6
{[%clk 0:00:07.8]} 105. Ne3 {[%clk 0:00:08.8]} 105... Kf6 {[%clk 0:00:08.7]}
106. Ke4 {[%clk 0:00:08.8]} 106... Re1 {[%clk 0:00:08.5]} 107. Kf4 {[%clk
0:00:09.1]} 107... Ra1 {[%clk 0:00:09.4]} 108. Ng4+ {[%clk 0:00:09.5]} 108...
Ke6 {[%clk 0:00:09.3]} 109. Ne3 {[%clk 0:00:10.4]} 109... Ra4+ {[%clk
0:00:08.8]} 110. Kf3 {[%clk 0:00:10.9]} 110... Ke5 {[%clk 0:00:09.3]} 111. Ng4+
{[%clk 0:00:10.1]} 111... Kf5 {[%clk 0:00:09.7]} 112. Ne3+ {[%clk 0:00:10.2]}
112... Kg5 {[%clk 0:00:10.6]} 113. Ke2 {[%clk 0:00:08.4]} 113... Rd4 {[%clk
0:00:10.8]} 114. Kf3 {[%clk 0:00:08.2]} 114... Rf4+ {[%clk 0:00:09.6]} 115. Ke2
{[%clk 0:00:08.4]} 115... Rb4 {[%clk 0:00:09.8]} 116. Kf3 {[%clk 0:00:08.9]}
116... Ra4 {[%clk 0:00:07.4]} 117. Ke2 {[%clk 0:00:08.6]} 117... Kf4 {[%clk
0:00:07.8]} 118. Nd5+ {[%clk 0:00:09.2]} 118... Ke5 {[%clk 0:00:08.3]} 119. Ne3
{[%clk 0:00:09.5]} 119... Ke4 {[%clk 0:00:08.8]} 120. Kd2 {[%clk 0:00:07.9]}
120... Ra3 {[%clk 0:00:05.7]} 121. Nc2 {[%clk 0:00:07.9]} 121... Rb3 {[%clk
0:00:06.2]} 122. Ke2 {[%clk 0:00:07.6]} 122... Rd3 {[%clk 0:00:05.5]} 123. Ne1
{[%clk 0:00:06.5]} 123... Rh3 {[%clk 0:00:04.9]} 124. Ng2 {[%clk 0:00:06.5]}
124... Rg3 {[%clk 0:00:04.2]} 125. Kf2 {[%clk 0:00:07]} 125... Rf3+ {[%clk
0:00:04.2]} 126. Ke2 {[%clk 0:00:07.4]} 126... Rf8 {[%clk 0:00:03.5]} 127. Ne1
{[%clk 0:00:07.2]} 127... Ra8 {[%clk 0:00:04.4]} 128. Nc2 {[%clk 0:00:07.1]}
128... Rc8 {[%clk 0:00:04.9]} 129. Kd2 {[%clk 0:00:07.3]} 129... Rc7 {[%clk
0:00:05.8]} 130. Ne1 {[%clk 0:00:07.3]} 130... Rd7+ {[%clk 0:00:05.1]} 131. Ke2
{[%clk 0:00:07.4]} 131... Rd8 {[%clk 0:00:04.1]} 132. Nc2 {[%clk 0:00:07.6]}
132... Rd3 {[%clk 0:00:04.1]} 133. Ne1 {[%clk 0:00:07.7]} 133... Re3+ {[%clk
0:00:04.4]} 134. Kf2 {[%clk 0:00:07.7]} 134... Rh3 {[%clk 0:00:05.3]} 135. Ng2
{[%clk 0:00:07.8]} 135... Rh1 {[%clk 0:00:04.9]} 136. Ke2 {[%clk 0:00:07.9]}
136... Rg1 {[%clk 0:00:04.5]} 137. Kf2 {[%clk 0:00:07.8]} 137... Rb1 {[%clk
0:00:05.4]} 138. Ke2 {[%clk 0:00:08.3]} 138... Rb2+ {[%clk 0:00:05.7]} 139. Kf1
{[%clk 0:00:08.7]} 139... Kf3 {[%clk 0:00:05.8]} 140. Ne1+ {[%clk 0:00:09.3]}
140... Kg3 {[%clk 0:00:06.2]} 141. Nd3 {[%clk 0:00:08.6]} 141... Rd2 {[%clk
0:00:06.4]} 142. Nc1 {[%clk 0:00:06.6]} 142... Rd1+ {[%clk 0:00:06.3]} 143. Ke2
{[%clk 0:00:06.6]} 143... Rxc1 {[%clk 0:00:07.2]} 144. Kd2 {[%clk 0:00:07.5]}
144... Rc7 {[%clk 0:00:07.7]} 0-1

[Event "*** SCC Grand Prix: Titled Tuesday Blitz"]
[Site "Chess.com"]
[Date "2020.09.08"]
[Round "8"]
[White "1977Ivan"]
[Black "Zavgorodniy_Serg"]
[Result "1-0"]
[WhiteElo "2643"]
[BlackElo "2786"]
[TimeControl "180+1"]
[EndTime "11:32:00 PDT"]
[Termination "1977Ivan won by resignation"]

1. d4 {[%clk 0:03:00.9]} 1... Nf6 {[%clk 0:02:59]} 2. Nf3 {[%clk 0:03:01.4]}
2... e6 {[%clk 0:02:58.8]} 3. c4 {[%clk 0:02:58.5]} 3... Bb4+ {[%clk 0:02:57.2]}
4. Nbd2 {[%clk 0:02:55.6]} 4... b6 {[%clk 0:02:56]} 5. g3 {[%clk 0:02:55.5]}
5... Ba6 {[%clk 0:02:53.1]} 6. Qc2 {[%clk 0:02:54.2]} 6... O-O {[%clk
0:02:50.5]} 7. Bg2 {[%clk 0:02:54.7]} 7... d5 {[%clk 0:02:50.3]} 8. O-O {[%clk
0:02:53.1]} 8... Bxd2 {[%clk 0:02:34.8]} 9. Nxd2 {[%clk 0:02:50.1]} 9... Nc6
{[%clk 0:02:29.7]} 10. e3 {[%clk 0:02:44.3]} 10... Nb4 {[%clk 0:02:11.4]} 11.
Qa4 {[%clk 0:02:26.4]} 11... c5 {[%clk 0:02:01.4]} 12. a3 {[%clk 0:02:25.3]} 1-0

[Event "*** SCC Grand Prix: Titled Tuesday Blitz"]
[Site "Chess.com"]
[Date "2020.09.08"]
[Round "8"]
[White "kot60"]
[Black "ExcitingTrap"]
[Result "1/2-1/2"]
[WhiteElo "2415"]
[BlackElo "2306"]
[TimeControl "180+1"]
[EndTime "11:32:34 PDT"]
[Termination "Game drawn by repetition"]

1. e4 {[%clk 0:03:00]} 1... e6 {[%clk 0:03:00.2]} 2. d4 {[%clk 0:02:59.5]} 2...
d5 {[%clk 0:03:00.3]} 3. Nd2 {[%clk 0:03:00]} 3... Nf6 {[%clk 0:02:59.8]} 4. Bd3
{[%clk 0:02:59.8]} 4... dxe4 {[%clk 0:02:58.6]} 5. Nxe4 {[%clk 0:02:59.3]} 5...
Be7 {[%clk 0:02:54.7]} 6. Nf3 {[%clk 0:02:58.1]} 6... h6 {[%clk 0:02:51.8]} 7.
Qe2 {[%clk 0:02:57.6]} 7... Nbd7 {[%clk 0:02:50]} 8. O-O {[%clk 0:02:55.8]} 8...
O-O {[%clk 0:02:49]} 9. c3 {[%clk 0:02:44.3]} 9... Nxe4 {[%clk 0:02:45.9]} 10.
Qxe4 {[%clk 0:02:42.5]} 10... Nf6 {[%clk 0:02:46.4]} 11. Qe2 {[%clk 0:02:38.8]}
11... c5 {[%clk 0:02:41.5]} 12. dxc5 {[%clk 0:02:37.2]} 12... Bxc5 {[%clk
0:02:40.4]} 13. Rd1 {[%clk 0:02:36.1]} 13... Qc7 {[%clk 0:02:39]} 14. Ne5 {[%clk
0:02:33.9]} 14... Bxf2+ {[%clk 0:02:18.6]} 15. Qxf2 {[%clk 0:02:22.7]} 15...
Qxe5 {[%clk 0:02:17.2]} 16. Bf4 {[%clk 0:02:21.4]} 16... Qh5 {[%clk 0:02:03.4]}
17. Be2 {[%clk 0:02:11.9]} 17... Qf5 {[%clk 0:02:00.2]} 18. Bd3 {[%clk
0:02:11.1]} 18... Qh5 {[%clk 0:01:48.2]} 19. Be2 {[%clk 0:02:10.1]} 19... Qf5
{[%clk 0:01:47.7]} 20. Bd3 {[%clk 0:02:04]} 20... Qh5 {[%clk 0:01:28.2]} 1/2-1/2

[Event "*** SCC Grand Prix: Titled Tuesday Blitz"]
[Site "Chess.com"]
[Date "2020.09.08"]
[Round "8"]
[White "Martins-BR"]
[Black "romulocardoso"]
[Result "1-0"]
[WhiteElo "2264"]
[BlackElo "2043"]
[TimeControl "180+1"]
[EndTime "11:32:48 PDT"]
[Termination "Martins-BR won by checkmate"]

1. e4 {[%clk 0:03:00.9]} 1... c5 {[%clk 0:03:00]} 2. Nf3 {[%clk 0:03:00.3]} 2...
d6 {[%clk 0:03:00.4]} 3. d4 {[%clk 0:02:59.9]} 3... cxd4 {[%clk 0:03:01.3]} 4.
Nxd4 {[%clk 0:03:00.3]} 4... Nf6 {[%clk 0:03:01.7]} 5. Nc3 {[%clk 0:02:59.7]}
5... g6 {[%clk 0:03:02]} 6. Be3 {[%clk 0:02:59.7]} 6... Bg7 {[%clk 0:03:02.2]}
7. f3 {[%clk 0:03:00.2]} 7... O-O {[%clk 0:03:02.5]} 8. Qd2 {[%clk 0:03:00.7]}
8... Nc6 {[%clk 0:03:02.8]} 9. g4 {[%clk 0:03:00.7]} 9... Bd7 {[%clk 0:03:03]}
10. h4 {[%clk 0:02:59.3]} 10... h5 {[%clk 0:03:02.4]} 11. gxh5 {[%clk 0:02:58]}
11... Nxh5 {[%clk 0:03:03.3]} 12. Rg1 {[%clk 0:02:57]} 12... Rc8 {[%clk
0:03:02.8]} 13. O-O-O {[%clk 0:02:55.5]} 13... Ne5 {[%clk 0:03:02.4]} 14. Bh6
{[%clk 0:02:49.4]} 14... Nc4 {[%clk 0:03:02.4]} 15. Bxc4 {[%clk 0:02:48.5]}
15... Rxc4 {[%clk 0:03:03.3]} 16. Bxg7 {[%clk 0:02:48]} 16... Kxg7 {[%clk
0:03:04.2]} 17. Nf5+ {[%clk 0:02:38]} 17... Bxf5 {[%clk 0:03:02.2]} 18. exf5
{[%clk 0:02:37.9]} 18... Rxh4 {[%clk 0:03:02.2]} 19. fxg6 {[%clk 0:02:29.5]}
19... f6 {[%clk 0:02:43.1]} 20. Nd5 {[%clk 0:02:21.1]} 20... e6 {[%clk 0:02:36]}
21. Qe1 {[%clk 0:02:14.1]} 21... Ra4 {[%clk 0:02:15.1]} 22. Qxe6 {[%clk
0:02:11.1]} 22... Rxa2 {[%clk 0:02:14.8]} 23. Kb1 {[%clk 0:01:31.2]} 23... Qa5
{[%clk 0:02:02.5]} 24. Qe7+ {[%clk 0:01:30.1]} 24... Kg8 {[%clk 0:02:02.1]} 25.
Qh7# {[%clk 0:01:29.8]} 1-0

[Event "*** SCC Grand Prix: Titled Tuesday Blitz"]
[Site "Chess.com"]
[Date "2020.09.08"]
[Round "8"]
[White "Supernotar"]
[Black "gagtemp"]
[Result "1-0"]
[WhiteElo "2782"]
[BlackElo "1950"]
[TimeControl "180+1"]
[EndTime "11:33:04 PDT"]
[Termination "Supernotar won by resignation"]

1. d4 {[%clk 0:03:00.9]} 1... d5 {[%clk 0:02:59.4]} 2. c4 {[%clk 0:03:00.3]}
2... e6 {[%clk 0:02:59.1]} 3. Nf3 {[%clk 0:02:59.1]} 3... c5 {[%clk 0:02:59.3]}
4. dxc5 {[%clk 0:02:58.7]} 4... Bxc5 {[%clk 0:02:54.8]} 5. e3 {[%clk 0:02:58.7]}
5... Nf6 {[%clk 0:02:52.6]} 6. a3 {[%clk 0:02:58.4]} 6... a5 {[%clk 0:02:46.4]}
7. Nc3 {[%clk 0:02:56.2]} 7... Nc6 {[%clk 0:02:44.9]} 8. cxd5 {[%clk 0:02:55.5]}
8... exd5 {[%clk 0:02:43.2]} 9. Nb5 {[%clk 0:02:54.8]} 9... O-O {[%clk
0:02:39.7]} 10. Be2 {[%clk 0:02:53.9]} 10... Bg4 {[%clk 0:02:33.4]} 11. O-O
{[%clk 0:02:53.3]} 11... a4 {[%clk 0:02:30.5]} 12. Nfd4 {[%clk 0:02:52.1]} 12...
Bd7 {[%clk 0:02:24.1]} 13. Bd2 {[%clk 0:02:51.7]} 13... Re8 {[%clk 0:02:14.2]}
14. Rc1 {[%clk 0:02:51]} 14... Bb6 {[%clk 0:02:08]} 15. Nd6 {[%clk 0:02:40.5]}
15... Re5 {[%clk 0:01:53.2]} 16. Nxb7 {[%clk 0:02:38]} 16... Qe7 {[%clk
0:01:50.8]} 17. Nxc6 {[%clk 0:02:32.5]} 17... Bxc6 {[%clk 0:01:50.1]} 18. Rxc6
{[%clk 0:02:31.7]} 18... Qxb7 {[%clk 0:01:49.4]} 19. Bc3 {[%clk 0:02:20]} 19...
Rg5 {[%clk 0:01:32.7]} 20. Bxf6 {[%clk 0:02:16.6]} 20... gxf6 {[%clk 0:01:26.9]}
21. Rxf6 {[%clk 0:02:16.1]} 21... Rd8 {[%clk 0:01:04]} 22. Qxa4 {[%clk
0:02:10.3]} 1-0